fUST/lending_fUST_20260612
["ID","MTS","AMOUNT","RATE_DAILY","PERIOD"]
[424903721,1781260247000,-619.91,0.00035616,18]
[424903737,1781260247000,-500.0,0.00035616,18]
[424903726,1781260247000,-1108.26,0.00035616,18]
[424903728,1781260247000,-500.0,0.00035616,2]
[424903704,1781260247000,-771.48,0.00035616,18]
[424903740,1781260247000,-500.0,0.00035616,18]
[424903739,1781260247000,-500.0,0.00035616,18]
[424903744,1781260247000,-500.0,0.00035616,18]
[424903731,1781260247000,-500.90681715,0.00035616,18]
[424903735,1781260247000,-500.0,0.00035616,18]
[424903733,1781260247000,-500.0,0.00035616,18]
[424903730,1781260247000,-1586.08,0.00035616,18]
[424903742,1781260247000,-2337.59,0.00035616,18]
[424903716,1781260247000,-500.0,0.00035616,18]
[424903702,1781260247000,-501.57689419,0.00035616,7]
[424903694,1781260247000,-500.0,0.00035616,18]
[424903698,1781260247000,-588.49,0.00035616,18]
[424903734,1781260247000,-501.89793194,0.00035616,18]
[424903654,1781260247000,-525.61,0.00035616,18]
[424903656,1781260247000,-500.0,0.00035616,18]
[424903659,1781260247000,-500.0,0.00035616,18]
[424903661,1781260247000,-500.0,0.00035616,18]
[424903662,1781260247000,-500.0,0.00035616,18]
[424903664,1781260247000,-500.0,0.00035616,18]
[424903667,1781260247000,-500.0,0.00035616,18]
[424903668,1781260247000,-500.0,0.00035616,18]
[424903672,1781260247000,-540.67,0.00035616,18]
[424903670,1781260247000,-500.0,0.00035616,18]
[424903674,1781260247000,-500.0,0.00035616,18]
[424903679,1781260247000,-500.0,0.00035616,18]
[424903676,1781260247000,-500.0,0.00035616,18]
[424903678,1781260247000,-500.0,0.00035616,18]
[424903681,1781260247000,-500.0,0.00035616,18]
[424903683,1781260247000,-151.0,0.00035616,7]
[424903687,1781260247000,-503.38374903,0.00035616,18]
[424903685,1781260247000,-500.0,0.00035616,18]
[424903689,1781260247000,-500.0,0.00035616,18]
[424903691,1781260247000,-151.0,0.00035616,18]
[424903693,1781260247000,-500.0,0.00035616,18]
[424903696,1781260247000,-500.0,0.00035616,18]
[424903700,1781260247000,-944.23,0.00035616,18]
[424903746,1781260247000,-532.05,0.00035616,18]
[424903829,1781260247000,-500.0,0.00035616,18]
[424903759,1781260247000,-644.33930571,0.00035616,18]
[424903795,1781260247000,-692.56,0.00035616,18]
[424903802,1781260247000,-568.39,0.00035616,18]
[424903806,1781260247000,-500.0,0.00035616,18]
[424903801,1781260247000,-924.14,0.00035616,18]
[424903804,1781260247000,-500.0,0.00035616,18]
[424903818,1781260247000,-500.0,0.00035616,18]
[424903820,1781260247000,-280.62874133,0.00035616,18]
[424903814,1781260247000,-500.0,0.00035616,18]
[424903823,1781260247000,-500.0,0.00035616,18]
[424903812,1781260247000,-500.0,0.00035616,18]
[424903816,1781260247000,-1251.8,0.00035616,18]
[424903809,1781260247000,-501.52275321,0.00035616,18]
[424903825,1781260247000,-500.0,0.00035616,18]
[424903821,1781260247000,-781.24,0.00035616,18]
[424903811,1781260247000,-165.67062298,0.00035616,18]
[424903807,1781260247000,-613.63,0.00035616,18]
[424903840,1781260247000,-500.0,0.00035616,18]
[424903833,1781260247000,-906.42,0.00035616,18]
[424903827,1781260247000,-485.51970921,0.00035616,18]
[424903831,1781260247000,-26126.8,0.00035616,18]
[424903836,1781260247000,-500.0,0.00035616,18]
[424903765,1781260247000,-658.68,0.00035616,18]
[424903834,1781260247000,-2402.26,0.00035616,18]
[424903792,1781260247000,-4345.02,0.00035616,18]
[424903790,1781260247000,-500.0,0.00035616,18]
[424903838,1781260247000,-500.0,0.00035616,18]
[424903799,1781260247000,-500.0,0.00035616,18]
[424903761,1781260247000,-500.0,0.00035616,18]
[424903797,1781260247000,-500.0,0.00035616,18]
[424903756,1781260247000,-500.0,0.00035616,18]
[424903753,1781260247000,-611.78,0.00035616,18]
[424903751,1781260247000,-500.79,0.00035616,6]
[424903749,1781260247000,-500.0,0.00035616,18]
[424903754,1781260247000,-500.0,0.00035616,18]
[424903763,1781260247000,-500.0,0.00035616,18]
[424903748,1781260247000,-500.0,0.00035616,18]
[424903767,1781260247000,-744.55,0.00035616,18]
[424903772,1781260247000,-549.6,0.00035616,18]
[424903770,1781260247000,-1034.39,0.00035616,18]
[424903758,1781260247000,-500.0,0.00035616,18]
[424903775,1781260247000,-500.0,0.00035616,18]
[424903787,1781260247000,-666.43,0.00035616,18]
[424903782,1781260247000,-893.03,0.00035616,18]
[424903768,1781260247000,-500.0,0.00035616,18]
[424903776,1781260247000,-500.0,0.00035616,18]
[424903785,1781260247000,-370.12105169,0.00035616,18]
[424903773,1781260247000,-1020.59,0.00035616,18]
[424903780,1781260247000,-502.54506554,0.00035616,18]
[424903794,1781260247000,-500.0,0.00035616,18]
[424903778,1781260247000,-500.0,0.00035616,18]
[424903783,1781260247000,-500.0,0.00035616,18]
[424903789,1781260247000,-500.0,0.00035616,18]
[424903903,1781260248000,-500.0,0.00035616,18]
[424903889,1781260248000,-500.0,0.00035616,18]
[424903898,1781260248000,-500.0,0.00035616,18]
[424903893,1781260248000,-2371.95,0.00035616,11]
[424903887,1781260248000,-500.0,0.00035616,18]
[424903895,1781260248000,-1600.12,0.00035616,18]
[424903907,1781260248000,-1377.98,0.00035616,18]
[424903897,1781260248000,-500.0,0.00035616,18]
[424903902,1781260248000,-1866.3,0.00035616,18]
[424903905,1781260248000,-500.0,0.00035616,18]
[424903920,1781260248000,-1435.49,0.00035616,18]
[424903911,1781260248000,-4708.51,0.00035616,18]
[424903913,1781260248000,-1232.88,0.00035616,18]
[424903914,1781260248000,-825.67,0.00035616,18]
[424903916,1781260248000,-5708.22,0.00035616,18]
[424903921,1781260248000,-500.0,0.00035616,18]
[424903918,1781260248000,-5238.56,0.00035616,18]
[424903923,1781260248000,-500.0,0.00035616,18]
[424903925,1781260248000,-1142.3,0.00035616,18]
[424903928,1781260248000,-531.85,0.00035616,18]
[424903900,1781260248000,-4099.81,0.00035616,18]
[424903927,1781260248000,-2957.36,0.00035616,18]
[424903909,1781260248000,-630.81524658,0.00035616,18]
[424903891,1781260248000,-686.82,0.00035616,18]
[424903856,1781260248000,-3225.79,0.00035616,18]
[424903881,1781260248000,-3114.48,0.00035616,18]
[424903929,1781260248000,-853.87,0.00035616,18]
[424903842,1781260248000,-500.0,0.00035616,18]
[424903843,1781260248000,-500.0,0.00035616,2]
[424903845,1781260248000,-4219.46,0.00035616,18]
[424903847,1781260248000,-500.0,0.00035616,18]
[424903861,1781260248000,-2264.06,0.00035616,18]
[424903853,1781260248000,-502.32004513,0.00035616,18]
[424903849,1781260248000,-1888.79,0.00035616,18]
[424903851,1781260248000,-500.0,0.00035616,18]
[424903855,1781260248000,-500.0,0.00035616,18]
[424903865,1781260248000,-669.45,0.00035616,18]
[424903858,1781260248000,-386.088991,0.00035616,18]
[424903863,1781260248000,-500.0,0.00035616,18]
[424903860,1781260248000,-708.22,0.00035616,2]
[424903867,1781260248000,-899.32,0.00035616,18]
[424903870,1781260248000,-500.0,0.00035616,18]
[424903880,1781260248000,-1112.62,0.00035616,18]
[424903872,1781260248000,-847.83,0.00035616,18]
[424903874,1781260248000,-1574.81,0.00035616,18]
[424903876,1781260248000,-500.0,0.00035616,18]
[424903869,1781260248000,-4897.44,0.00035616,18]
[424903883,1781260248000,-794.21,0.00035616,18]
[424903878,1781260248000,-500.0,0.00035616,18]
[424903885,1781260248000,-500.0,0.00035616,18]
[424903930,1781260248000,-635.76,0.00035616,18]
[424903976,1781260248000,-500.0,0.0003589,18]
[424903936,1781260248000,-500.0,0.00035616,18]
[424903981,1781260248000,-500.0,0.0003589,18]
[424903980,1781260248000,-540.67,0.0003589,18]
[424903979,1781260248000,-190.02644942,0.0003589,18]
[424903983,1781260248000,-202.56838061,0.0003589,18]
[424903984,1781260248000,-500.0,0.0003589,18]
[424903982,1781260248000,-500.0,0.0003589,18]
[424903987,1781260248000,-500.0,0.0003589,18]
[424903986,1781260248000,-593.17517393,0.0003589,18]
[424903985,1781260248000,-500.0,0.0003589,18]
[424903989,1781260248000,-500.0,0.0003589,18]
[424903994,1781260248000,-1346.64,0.0003589,18]
[424903991,1781260248000,-588.49,0.0003589,18]
[424903995,1781260248000,-500.0,0.0003589,18]
[424903992,1781260248000,-944.23,0.0003589,18]
[424903993,1781260248000,-771.48,0.0003589,18]
[424903990,1781260248000,-500.0,0.0003589,18]
[424903988,1781260248000,-500.0,0.0003589,18]
[424903996,1781260248000,-151.0,0.0003589,7]
[424903998,1781260248000,-1041.99,0.0003589,18]
[424903999,1781260248000,-619.91,0.0003589,18]
[424904001,1781260248000,-500.0,0.0003589,18]
[424904000,1781260248000,-497.53829505,0.0003589,18]
[424903931,1781260248000,-500.380843,0.00035616,18]
[424903977,1781260248000,-500.0,0.0003589,18]
[424903978,1781260248000,-500.0,0.0003589,18]
[424903997,1781260248000,-500.0,0.0003589,18]
[424903971,1781260248000,-500.0,0.0003589,18]
[424903972,1781260248000,-500.0,0.0003589,18]
[424903933,1781260248000,-2454.76,0.00035616,18]
[424903937,1781260248000,-529.16,0.00035616,18]
[424903934,1781260248000,-782.81,0.00035616,18]
[424903949,1781260248000,-300.0,0.00035687,38]
[424903943,1781260248000,-500.0,0.00035616,18]
[424903956,1781260248000,-649.79,0.0003589,18]
[424903954,1781260248000,-353.79028777,0.0003589,15]
[424903958,1781260248000,-500.0,0.0003589,18]
[424903947,1781260248000,-186.0,0.00035675,2]
[424903950,1781260248000,-1000.0,0.000358,22]
[424903932,1781260248000,-500.0,0.00035616,18]
[424903945,1781260248000,-500.0,0.00035616,18]
[424903939,1781260248000,-500.0,0.00035616,18]
[424903965,1781260248000,-500.0,0.0003589,18]
[424903961,1781260248000,-500.0,0.0003589,18]
[424903969,1781260248000,-525.61,0.0003589,18]
[424903959,1781260248000,-834.47,0.0003589,18]
[424903967,1781260248000,-500.0,0.0003589,18]
[424903964,1781260248000,-310.86430919,0.0003589,18]
[424903974,1781260248000,-500.0,0.0003589,18]
[424903952,1781260248000,-966.4454,0.0003589,18]
[424903941,1781260248000,-500.0,0.00035616,18]
[424903975,1781260248000,-500.0,0.0003589,18]
[424904023,1781260249000,-744.55,0.0003589,18]
[424904030,1781260249000,-500.0,0.0003589,18]
[424904027,1781260249000,-1020.59,0.0003589,18]
[424904033,1781260249000,-666.43,0.0003589,18]
[424904026,1781260249000,-549.6,0.0003589,18]
[424904025,1781260249000,-1034.39,0.0003589,18]
[424904028,1781260249000,-500.0,0.0003589,18]
[424904024,1781260249000,-500.0,0.0003589,18]
[424904036,1781260249000,-500.0,0.0003589,18]
[424904029,1781260249000,-500.0,0.0003589,18]
[424904032,1781260249000,-500.0,0.0003589,18]
[424904034,1781260249000,-500.0,0.0003589,18]
[424904037,1781260249000,-4345.02,0.0003589,18]
[424904038,1781260249000,-500.0,0.0003589,18]
[424904039,1781260249000,-692.56,0.0003589,18]
[424904022,1781260249000,-658.68,0.0003589,18]
[424904035,1781260249000,-38000.0,0.0003589,15]
[424904031,1781260249000,-893.03,0.0003589,18]
[424904019,1781260249000,-500.0,0.0003589,18]
[424904009,1781260249000,-500.0,0.0003589,18]
[424904017,1781260249000,-589.26269369,0.0003589,18]
[424904042,1781260249000,-924.14,0.0003589,18]
[424904005,1781260249000,-500.0,0.0003589,18]
[424904007,1781260249000,-500.0,0.0003589,18]
[424904006,1781260249000,-500.0,0.0003589,18]
[424904008,1781260249000,-500.0,0.0003589,18]
[424904003,1781260249000,-500.0,0.0003589,2]
[424904002,1781260249000,-1108.26,0.0003589,18]
[424904004,1781260249000,-1586.08,0.0003589,18]
[424904021,1781260249000,-500.0,0.0003589,18]
[424904010,1781260249000,-2337.59,0.0003589,18]
[424904011,1781260249000,-500.0,0.0003589,18]
[424904012,1781260249000,-532.05,0.0003589,18]
[424904013,1781260249000,-500.0,0.0003589,18]
[424904015,1781260249000,-500.79,0.0003589,6]
[424904014,1781260249000,-500.0,0.0003589,18]
[424904018,1781260249000,-500.0,0.0003589,18]
[424904016,1781260249000,-611.78,0.0003589,18]
[424904020,1781260249000,-500.0,0.0003589,18]
[424904041,1781260249000,-500.0,0.0003589,18]
[424904067,1781260249000,-3225.79,0.0003589,18]
[424904043,1781260249000,-568.39,0.0003589,18]
[424904060,1781260249000,-500.0,0.0003589,18]
[424904062,1781260249000,-4219.46,0.0003589,18]
[424904070,1781260249000,-500.0,0.0003589,18]
[424904068,1781260249000,-708.22,0.0003589,2]
[424904074,1781260249000,-500.0,0.0003589,18]
[424904077,1781260249000,-502.58794243,0.0003589,18]
[424904076,1781260249000,-1574.81,0.0003589,18]
[424904071,1781260249000,-669.45,0.0003589,18]
[424904075,1781260249000,-847.83,0.0003589,18]
[424904072,1781260249000,-899.32,0.0003589,18]
[424904079,1781260249000,-1112.62,0.0003589,18]
[424904069,1781260249000,-2264.06,0.0003589,18]
[424904073,1781260249000,-4897.44,0.0003589,18]
[424904078,1781260249000,-500.0,0.0003589,18]
[424904080,1781260249000,-3114.48,0.0003589,18]
[424904082,1781260249000,-120.64807328,0.0003589,18]
[424904081,1781260249000,-794.21,0.0003589,18]
[424904040,1781260249000,-500.0,0.0003589,18]
[424904065,1781260249000,-210.98758481,0.0003589,18]
[424904061,1781260249000,-500.0,0.0003589,2]
[424904056,1781260249000,-2402.26,0.0003589,18]
[424904045,1781260249000,-500.0,0.0003589,18]
[424904047,1781260249000,-500.0,0.0003589,18]
[424904044,1781260249000,-500.0,0.0003589,18]
[424904048,1781260249000,-1251.8,0.0003589,18]
[424904046,1781260249000,-613.63,0.0003589,18]
[424904049,1781260249000,-500.0,0.0003589,18]
[424904050,1781260249000,-781.24,0.0003589,18]
[424904058,1781260249000,-500.0,0.0003589,18]
[424904053,1781260249000,-500.0,0.0003589,18]
[424904051,1781260249000,-500.0,0.0003589,18]
[424904052,1781260249000,-500.0,0.0003589,18]
[424904055,1781260249000,-906.42,0.0003589,18]
[424904059,1781260249000,-500.0,0.0003589,18]
[424904057,1781260249000,-500.0,0.0003589,18]
[424904066,1781260249000,-500.0,0.0003589,18]
[424904063,1781260249000,-500.0,0.0003589,18]
[424904064,1781260249000,-1888.79,0.0003589,18]
[424904054,1781260249000,-26126.8,0.0003589,18]
[424905013,1781260447000,5000.0,0.00024658,30]
[424905164,1781261432000,-1869.49181788,0.000254,2]
[424905162,1781261432000,-162.8924,0.000226,2]
[424905165,1781261432000,-417.15472785,0.00025422,2]
[424905167,1781261432000,-1326.71598599,0.000257,2]
[424905163,1781261432000,-259.79833072,0.000241,2]
[424905166,1781261432000,-542.77583189,0.000257,2]
[424905168,1781261432000,-1604.90449165,0.000259,2]
[424905161,1781261432000,-1054.88350466,0.0002215,9]
[424905188,1781261438000,-1464.72140557,0.000262,2]
[424905187,1781261438000,-264.58732623,0.000259,2]
[424905190,1781261438000,-4.74945809,0.000262,2]
[424905191,1781261438000,-1869.49181788,0.000265,2]
[424905194,1781261438000,-300.0,0.00027029,30]
[424905201,1781261438000,-300.0,0.00027029,30]
[424905192,1781261438000,-300.0,0.00027029,30]
[424905196,1781261438000,-300.0,0.00027029,30]
[424905200,1781261438000,-300.0,0.00027029,30]
[424905198,1781261438000,-300.0,0.00027029,30]
[424905193,1781261438000,-300.0,0.00027029,30]
[424905195,1781261438000,-300.0,0.00027029,30]
[424905199,1781261438000,-300.0,0.00027029,30]
[424905189,1781261438000,-400.02095422,0.000262,2]
[424905203,1781261438000,-300.0,0.00027029,30]
[424905202,1781261438000,-300.0,0.00027029,30]
[424905204,1781261438000,-300.0,0.00027029,30]
[424905208,1781261438000,-3099.996613,0.00027433,120]
[424905205,1781261438000,-300.0,0.00027029,30]
[424905207,1781261438000,-300.0,0.00027029,30]
[424905206,1781261438000,-300.0,0.00027029,30]
[424905214,1781261439000,-183.6859203,0.00033697,2]
[424905213,1781261439000,-445.93241241,0.00032264,2]
[424905212,1781261439000,-186.0,0.00030931,2]
[424905209,1781261439000,-1000.0,0.00027809,30]
[424905215,1781261439000,-186.287,0.00033962,37]
[424905210,1781261439000,-1416.0,0.00027931,2]
[424905216,1781261439000,-393.69624734,0.00034597,2]
[424905211,1781261439000,-186.0,0.00027931,2]
[424905232,1781261441000,-152.0,0.00025075,30]
[424905233,1781261441000,-4863.71438205,0.00034597,2]
[424905255,1781261444000,-500.68,0.00034597,2]
[424905254,1781261444000,-797.9436118,0.00034597,2]
[424905253,1781261444000,-418.93857618,0.00034597,2]
[424905289,1781261446000,-301.30024172,0.00034251,30]
[424905291,1781261446000,-11479.941454,0.00034597,2]
[424905313,1781261447000,-24126.53312678,0.00034597,2]
[424905442,1781261654000,1253.76284215,0.00024658,30]
[424905482,1781261856000,8112.30911413,7.6e-05,2]
[424905586,1781262261000,333.6893426,0.00022975,30]
[424905649,1781262631000,-3000.0,0.000254,2]
[424905651,1781262631000,-500.0,0.00025409,2]
[424905665,1781262631000,-500.0,0.00025409,2]
[424905663,1781262631000,-500.0,0.00025409,2]
[424905657,1781262631000,-178.15009058,0.00025409,2]
[424905659,1781262631000,-500.0,0.00025409,2]
[424905655,1781262631000,-321.84990942,0.00025409,2]
[424905636,1781262631000,-282.56582626,0.00015,2]
[424905644,1781262631000,-713.28258074,0.00023965,2]
[424905646,1781262631000,-10409.976802,0.00024059,2]
[424905642,1781262631000,-466.082414,0.00023197,2]
[424905640,1781262631000,-1511.08307521,0.00021041,2]
[424905638,1781262631000,-157.0,0.00017534,3]
[424905635,1781262631000,-5000.0,0.00014409,9]
[424905647,1781262631000,-153.94343882,0.0002534,2]
[424905666,1781262631000,-500.0,0.00025409,2]
[424905653,1781262631000,-500.0,0.00025409,2]
[424905668,1781262631000,-500.0,0.00025409,2]
[424905696,1781262631000,-108.30400899,0.00025409,2]
[424905695,1781262631000,-391.69599101,0.00025409,2]
[424905682,1781262631000,-500.0,0.00025409,2]
[424905686,1781262631000,-500.0,0.00025409,2]
[424905690,1781262631000,-182.56325691,0.00025409,2]
[424905684,1781262631000,-500.0,0.00025409,2]
[424905688,1781262631000,-317.43674309,0.00025409,2]
[424905692,1781262631000,-500.0,0.00025409,2]
[424905676,1781262631000,-500.0,0.00025409,2]
[424905674,1781262631000,-500.0,0.00025409,2]
[424905670,1781262631000,-92.42204309,0.00025409,2]
[424905680,1781262631000,-500.0,0.00025409,2]
[424905661,1781262631000,-500.0,0.00025409,2]
[424905673,1781262631000,-500.0,0.00025409,2]
[424905672,1781262631000,-500.0,0.00025409,2]
[424905678,1781262631000,-500.0,0.00025409,2]
[424905671,1781262631000,-407.57795691,0.00025409,2]
[424905698,1781262632000,-228.22767401,0.00025409,2]
[424905704,1781262632000,-500.0,0.00025409,2]
[424905705,1781262632000,-500.0,0.00025409,2]
[424905707,1781262632000,-311.07841163,0.00025409,2]
[424905702,1781262632000,-500.0,0.00025409,2]
[424905700,1781262632000,-271.77232599,0.00025409,2]
[424905795,1781262638000,-500.0,0.00025409,2]
[424905793,1781262638000,-500.0,0.00025409,2]
[424905791,1781262638000,-500.0,0.00025409,2]
[424905790,1781262638000,-500.0,0.00025409,2]
[424905788,1781262638000,-500.0,0.00025409,2]
[424905786,1781262638000,-188.92158837,0.00025409,2]
[424905797,1781262638000,-500.0,0.00025409,2]
[424905799,1781262638000,-170.55568444,0.00025409,2]
[424905973,1781262640000,-329.44431556,0.00025409,2]
[424905988,1781262640000,-306.45048045,0.00025409,2]
[424905975,1781262640000,-86.07468444,0.00025409,2]
[424906178,1781262643000,-107.47483511,0.00025409,2]
[424906179,1781262643000,-157.03066739,0.00025409,2]
[424906550,1781262646000,-500.0,0.00025409,2]
[424906558,1781262646000,-500.0,0.00025409,2]
[424906546,1781262646000,-500.0,0.00025409,2]
[424906555,1781262646000,-500.0,0.00025409,2]
[424906544,1781262646000,-500.0,0.00025409,2]
[424906531,1781262646000,-500.0,0.00025409,2]
[424906538,1781262646000,-500.0,0.00025409,2]
[424906536,1781262646000,-500.0,0.00025409,2]
[424906533,1781262646000,-500.0,0.00025409,2]
[424906535,1781262646000,-500.0,0.00025409,2]
[424906523,1781262646000,-388.66933261,0.00025409,2]
[424906518,1781262646000,-500.0,0.00025409,2]
[424906529,1781262646000,-500.0,0.00025409,2]
[424906542,1781262646000,-468.22896317,0.00025409,2]
[424906521,1781262646000,-111.33066739,0.00025409,2]
[424906527,1781262646000,-500.0,0.00025409,2]
[424906516,1781262646000,-500.0,0.00025409,2]
[424906525,1781262646000,-500.0,0.00025409,2]
[424906514,1781262646000,-500.0,0.00025409,2]
[424906512,1781262646000,-500.0,0.00025409,2]
[424906506,1781262646000,-500.0,0.00025409,2]
[424906501,1781262646000,-500.0,0.00025409,2]
[424906509,1781262646000,-500.0,0.00025409,2]
[424906505,1781262646000,-500.0,0.00025409,2]
[424906497,1781262646000,-500.0,0.00025409,2]
[424906493,1781262646000,-500.0,0.00025399,2]
[424906499,1781262646000,-500.0,0.00025409,2]
[424906503,1781262646000,-500.0,0.00025409,2]
[424906495,1781262646000,-342.96933261,0.00025409,2]
[424906519,1781262646000,-500.0,0.00025409,2]
[424906552,1781262646000,-500.0,0.00025409,2]
[424906548,1781262646000,-500.0,0.00025409,2]
[424906565,1781262646000,-500.0,0.00025409,2]
[424906556,1781262646000,-500.0,0.00025409,2]
[424906621,1781262646000,-500.0,0.00025409,2]
[424906616,1781262646000,-500.0,0.00025409,2]
[424906617,1781262646000,-500.0,0.00025409,2]
[424906619,1781262646000,-500.0,0.00025409,2]
[424906612,1781262646000,-500.0,0.00025409,2]
[424906614,1781262646000,-500.0,0.00025409,2]
[424906605,1781262646000,-500.0,0.00025409,2]
[424906610,1781262646000,-500.0,0.00025409,2]
[424906599,1781262646000,-500.0,0.00025409,2]
[424906601,1781262646000,-500.0,0.00025409,2]
[424906592,1781262646000,-500.0,0.00025409,2]
[424906588,1781262646000,-500.0,0.00025409,2]
[424906607,1781262646000,-500.0,0.00025409,2]
[424906597,1781262646000,-500.0,0.00025409,2]
[424906603,1781262646000,-500.0,0.00025409,2]
[424906594,1781262646000,-500.0,0.00025409,2]
[424906569,1781262646000,-500.0,0.00025409,2]
[424906563,1781262646000,-500.0,0.00025409,2]
[424906567,1781262646000,-500.0,0.00025409,2]
[424906590,1781262646000,-500.0,0.00025409,2]
[424906571,1781262646000,-500.0,0.00025409,2]
[424906582,1781262646000,-500.0,0.00025409,2]
[424906561,1781262646000,-500.0,0.00025409,2]
[424906580,1781262646000,-500.0,0.00025409,2]
[424906578,1781262646000,-500.0,0.00025409,2]
[424906573,1781262646000,-500.0,0.00025409,2]
[424906575,1781262646000,-500.0,0.00025409,2]
[424906584,1781262646000,-500.0,0.00025409,2]
[424906586,1781262646000,-500.0,0.00025409,2]
[424906596,1781262646000,-500.0,0.00025409,2]
[424906576,1781262646000,-500.0,0.00025409,2]
[424906647,1781262647000,-3000.0,0.0002546,2]
[424906636,1781262647000,-3000.0,0.0002541,2]
[424906634,1781262647000,-650.0,0.00025409,2]
[424906623,1781262647000,-209.41136602,0.00025409,2]
[424906632,1781262647000,-500.0,0.00025409,2]
[424906631,1781262647000,-500.0,0.00025409,2]
[424906625,1781262647000,-500.0,0.00025409,2]
[424906638,1781262647000,-3000.0,0.0002542,2]
[424906627,1781262647000,-500.0,0.00025409,2]
[424906645,1781262647000,-3000.0,0.0002545,2]
[424906629,1781262647000,-500.0,0.00025409,2]
[424906651,1781262647000,-3000.0,0.0002548,2]
[424906643,1781262647000,-3000.0,0.0002544,2]
[424906649,1781262647000,-3000.0,0.0002547,2]
[424906642,1781262647000,-3000.0,0.0002543,2]
[424906640,1781262647000,-215.833,0.0002542,10]
[424906653,1781262647000,-3000.0,0.0002549,2]
[424906658,1781262647000,-3000.0,0.0002552,2]
[424906655,1781262647000,-3000.0,0.000255,2]
[424906656,1781262647000,-3000.0,0.0002551,2]
[424906660,1781262647000,-3000.0,0.0002553,2]
[424906662,1781262647000,-350.64972598,0.0002554,2]
[424906900,1781263832000,-299.40637829,0.00024664,2]
[424906899,1781263832000,-4229.95301627,0.00024174,9]
[424906898,1781263832000,-770.04698373,0.00024174,9]
[424906901,1781263832000,-473.59592226,0.00025399,7]
[424906903,1781263832000,-1280.3119522,0.000255,2]
[424906902,1781263832000,-1162.15537456,0.000255,2]
[424906904,1781263832000,-1589.54416894,0.0002554,2]
[424906933,1781263838000,-500.0,0.00025792,2]
[424906940,1781263838000,-500.0,0.00025792,2]
[424906942,1781263838000,-375.73028932,0.00025792,2]
[424906943,1781263838000,-500.0,0.00025792,2]
[424906944,1781263838000,-500.0,0.00025792,2]
[424906952,1781263838000,-500.0,0.00025792,2]
[424906947,1781263838000,-500.0,0.00025792,2]
[424906945,1781263838000,-500.0,0.00025792,2]
[424906949,1781263838000,-500.0,0.00025792,2]
[424906948,1781263838000,-500.0,0.00025792,2]
[424906951,1781263838000,-500.0,0.00025792,2]
[424906950,1781263838000,-500.0,0.00025792,2]
[424906941,1781263838000,-500.0,0.00025792,2]
[424906937,1781263838000,-500.0,0.00025792,2]
[424906946,1781263838000,-500.0,0.00025792,2]
[424906934,1781263838000,-500.0,0.00025792,2]
[424906939,1781263838000,-500.0,0.00025792,2]
[424906932,1781263838000,-500.0,0.00025792,2]
[424906954,1781263838000,-598.72288166,0.00025792,2]
[424906920,1781263838000,-1059.80610508,0.0002554,2]
[424906925,1781263838000,-500.0,0.00025569,2]
[424906922,1781263838000,-3000.0,0.0002555,2]